bitfinex/quotes_BTCUSD_20240602
["timestamp","ask_amount","ask_price","bid_price","bid_amount"]
[1717330438102,0.00978337,68136.0,68132.0,0.013]
[1717330438547,0.00978337,68136.0,68132.0,0.007]
[1717330438982,0.00978337,68136.0,68132.0,0.013]
[1717330439861,0.00978337,68136.0,68132.0,0.006]
[1717330440379,0.00978337,68136.0,68130.0,0.014]
[1717330440552,0.00978337,68135.0,68130.0,0.014]
[1717330440792,0.00978337,68135.0,68129.0,0.8012]
[1717330441192,0.00978337,68135.0,68132.0,0.001]
[1717330441405,0.001,68136.0,68132.0,0.001]
[1717330441406,0.146751,68143.0,68133.0,0.21866686]
[1717330441624,0.00978337,68153.0,68143.0,0.07288895]
[1717330441837,0.00978337,68155.0,68144.0,0.7653]
[1717330442048,0.15650837,68155.0,68144.0,0.7653]
[1717330443659,0.15850837,68155.0,68144.0,0.7653]
[1717330444094,0.15850837,68155.0,68145.0,0.15226588]
[1717330444319,0.16050837,68155.0,68144.0,0.7653]
[1717330444521,0.16050837,68155.0,68145.0,0.15226526]
[1717330444724,0.16050837,68155.0,68144.0,0.7653]
[1717330444971,0.15850837,68155.0,68145.0,0.15226529]
[1717330445194,0.15850837,68155.0,68144.0,0.7653]
[1717330445195,0.00978337,68154.0,68144.0,0.7653]
[1717330445392,0.16050837,68155.0,68145.0,0.15226453]
[1717330445618,0.01178337,68155.0,68146.0,0.15226453]
[1717330445823,0.01178337,68155.0,68144.0,0.7653]
[1717330445936,0.01178337,68155.0,68145.0,0.1522631]
[1717330445937,0.01378337,68155.0,68145.0,0.1522631]
[1717330446159,0.01378337,68155.0,68144.0,0.7653]
[1717330446548,0.01178337,68155.0,68145.0,0.15226312]
[1717330446782,0.01178337,68155.0,68144.0,0.7653]
[1717330446982,0.01378337,68155.0,68145.0,0.15226308]
[1717330447182,0.01178337,68155.0,68144.0,0.7653]
[1717330447387,0.00978337,68152.0,68144.0,0.912048]
[1717330447605,0.01178337,68155.0,68144.0,0.912048]
[1717330447846,0.01178337,68155.0,68145.0,0.1522627]
[1717330447847,0.00978337,68152.0,68145.0,0.1522627]
[1717330448084,0.00978337,68152.0,68144.0,0.912048]
[1717330449465,0.01478337,68155.0,68144.0,0.912048]
[1717330449665,0.01178337,68155.0,68144.0,0.912048]
[1717330449937,0.01178337,68155.0,68145.0,0.169745]
[1717330450140,0.002,68152.0,68145.0,0.169745]
[1717330450493,0.00978337,68154.0,68145.0,0.169745]
[1717330450695,0.002,68152.0,68145.0,0.023]
[1717330450893,0.01178337,68152.0,68145.0,0.023]
[1717330451261,0.00978337,68152.0,68145.0,0.023]
[1717330451493,0.01178337,68152.0,68145.0,0.023]
[1717330452590,0.002,68152.0,68145.0,0.023]
[1717330453260,0.005,68152.0,68145.0,0.023]
[1717330454594,0.01478337,68152.0,68145.0,0.169745]
[1717330456335,0.005,68152.0,68145.0,0.169745]
[1717330460105,0.01478337,68152.0,68145.0,0.169745]
[1717330460299,0.00978337,68151.0,68145.0,0.169745]
[1717330460528,0.00978337,68150.0,68145.0,0.169745]
[1717330460720,0.00978337,68151.0,68145.0,0.169745]
[1717330460860,0.00978337,68150.0,68145.0,0.169745]
[1717330461277,0.00978337,68149.0,68145.0,0.169745]
[1717330461647,0.00978337,68147.0,68145.0,0.025]
[1717330461952,0.00978337,68147.0,68145.0,0.027]
[1717330462352,0.00978337,68147.0,68145.0,0.025]
[1717330462555,0.00978337,68146.0,68145.0,0.002]
[1717330462764,0.00978337,68146.0,68136.0,0.4933]
[1717330462765,0.00978337,68143.0,68136.0,0.146765]
[1717330462967,0.00978337,68143.0,68135.0,0.4691]
[1717330462968,0.00978337,68139.0,68135.0,0.4691]
[1717330463192,0.7853,68142.0,68131.0,0.01468019]
[1717330463193,0.00978337,68138.0,68131.0,0.01468019]
[1717330463612,0.00978337,68138.0,68130.0,0.146777]
[1717330463722,0.00978337,68136.0,68130.0,0.146777]
[1717330463946,0.00978337,68135.0,68126.0,0.146786]
[1717330464145,0.46688337,68133.0,68127.0,0.15229595]
[1717330464439,0.00978337,68132.0,68126.0,0.146786]
[1717330464669,0.4571,68133.0,68126.0,0.146786]
[1717330464670,0.00978337,68131.0,68126.0,0.146786]
[1717330465023,0.4571,68133.0,68127.0,0.07288895]
[1717330465251,0.4571,68137.0,68128.0,0.2906]
[1717330467736,0.4571,68137.0,68128.0,0.3246]
[1717330468381,0.4571,68137.0,68128.0,0.3346]
[1717330468590,0.00978337,68136.0,68128.0,0.3006]
[1717330468825,0.146755,68141.0,68135.0,0.07288895]
[1717330469030,0.00978337,68151.0,68139.0,0.146757]
[1717330469263,0.00978337,68151.0,68140.0,0.16877791]
[1717330469477,0.00978337,68149.0,68140.0,0.16877791]
[1717330469698,0.4571,68153.0,68140.0,0.023]
[1717330469699,0.00978337,68148.0,68140.0,0.023]
[1717330470184,0.002,68141.0,68140.0,0.023]
[1717330471544,0.603829,68153.0,68140.0,0.023]
[1717330471545,0.00978337,68150.0,68140.0,0.023]
[1717330471743,0.00978337,68150.0,68140.0,0.025]
[1717330471966,0.002,68149.0,68140.0,0.31753391]
[1717330472172,0.002,68149.0,68140.0,0.31553391]
[1717330472379,0.002,68149.0,68140.0,0.17477791]
[1717330472586,0.003,68141.0,68140.0,0.92827791]
[1717330472789,0.003,68141.0,68140.0,0.92227791]
[1717330473192,0.003,68141.0,68140.0,0.92827791]
[1717330473393,0.003,68141.0,68140.0,1.06903391]
[1717330474009,0.00978337,68153.0,68141.0,0.146752]
[1717330474205,0.452822,68156.0,68142.0,0.169751]
[1717330474206,0.00978337,68152.0,68142.0,0.169751]
[1717330474413,0.00978337,68152.0,68142.0,0.146751]
[1717330474728,0.452822,68156.0,68142.0,0.146751]
[1717330474729,0.00978337,68151.0,68142.0,0.146751]
[1717330475744,0.146722,68156.0,68143.0,0.29252791]
[1717330475943,0.146722,68156.0,68144.0,0.023]
[1717330476151,0.001,68151.0,68144.0,0.16877791]
[1717330477807,0.01378337,68151.0,68144.0,0.16877791]
[1717330478008,0.004,68151.0,68144.0,0.16877791]
[1717330478639,0.003,68151.0,68144.0,0.16877791]
[1717330479474,0.00978337,68150.0,68144.0,0.16877791]
[1717330479643,0.01478337,68151.0,68144.0,0.16877791]
[1717330479824,0.00978337,68150.0,68144.0,0.16877791]
[1717330480029,0.005,68151.0,68144.0,0.16877791]
[1717330480424,0.00978337,68156.0,68144.0,0.16877791]
[1717330480629,0.77263801,68157.0,68144.0,0.16877791]
[1717330480834,0.003,68150.0,68144.0,0.31552491]
[1717330481258,0.00978337,68155.0,68144.0,0.31552491]
[1717330481666,0.00978337,68153.0,68144.0,0.31552491]
[1717330481867,0.002,68150.0,68144.0,0.31552491]
[1717330482069,0.91935801,68157.0,68144.0,0.31552491]
[1717330482070,0.00978337,68155.0,68144.0,0.31552491]
[1717330482475,0.00978337,68155.0,68144.0,0.32452491]
[1717330482678,0.00978337,68155.0,68144.0,0.31552491]
[1717330483096,0.00978337,68155.0,68144.0,0.32452491]
[1717330483314,0.00978337,68155.0,68144.0,0.31552491]
[1717330483720,0.00978337,68155.0,68144.0,0.32452491]
[1717330483922,0.00978337,68153.0,68144.0,0.33452491]
[1717330484949,0.00978337,68153.0,68144.0,0.32452491]
[1717330485153,0.00978337,68153.0,68144.0,0.33452491]
[1717330485389,0.00978337,68152.0,68144.0,0.33452491]
[1717330486002,0.00978337,68152.0,68144.0,0.32552491]
[1717330486802,0.00978337,68152.0,68144.0,0.33452491]
[1717330487014,0.00978337,68155.0,68144.0,0.32452491]
[1717330487249,0.91935801,68157.0,68144.0,0.32452491]
[1717330487250,0.00978337,68153.0,68144.0,0.32452491]
[1717330487450,0.00978337,68153.0,68144.0,0.33452491]
[1717330488035,0.00978337,68153.0,68144.0,0.32452491]
[1717330488236,0.00978337,68155.0,68144.0,0.33452491]
[1717330488417,0.00978337,68153.0,68144.0,0.33452491]
[1717330488620,0.00978337,68153.0,68144.0,0.34352491]
[1717330488814,0.00978337,68155.0,68144.0,0.31552491]
[1717330489014,0.00978337,68153.0,68144.0,0.32552491]
[1717330489205,0.00978337,68153.0,68144.0,0.33452491]
[1717330489819,0.00978337,68155.0,68145.0,0.3104]
[1717330490016,0.00978337,68155.0,68146.0,0.023]
[1717330490890,0.91935801,68157.0,68146.0,0.023]
[1717330491524,0.77263801,68157.0,68146.0,0.169741]
[1717330491679,0.77263801,68157.0,68146.0,0.173741]
[1717330492037,0.77263801,68157.0,68147.0,0.4944]
[1717330492234,0.77263801,68157.0,68147.0,0.64114]
[1717330492733,0.78242138,68157.0,68148.0,0.146739]
[1717330492900,0.00978337,68156.0,68148.0,0.146739]
[1717330494009,0.00978337,68155.0,68148.0,0.146739]
[1717330495087,0.002,68156.0,68153.0,0.3104]
[1717330496156,0.00943801,68157.0,68153.0,0.3104]
[1717330496363,0.002,68156.0,68153.0,0.3114]
[1717330496696,0.002,68156.0,68153.0,0.3104]
[1717330496896,0.003,68156.0,68153.0,0.3104]
[1717330497101,0.002,68155.0,68153.0,0.3104]
[1717330497511,0.001,68156.0,68153.0,0.3104]
[1717330497948,0.001,68156.0,68153.0,0.3114]
[1717330498803,0.001,68156.0,68155.0,0.21961295]
[1717330499390,0.001,68156.0,68155.0,0.24261295]
[1717330499605,0.00943801,68157.0,68156.0,0.146722]
[1717330499826,0.00943801,68157.0,68156.0,0.169722]
[1717330500833,0.00943801,68157.0,68156.0,0.146722]
[1717330500992,0.002,68156.0,68151.0,0.8048]
[1717330501442,0.00943801,68157.0,68153.0,0.146728]
[1717330501810,0.00943801,68157.0,68156.0,0.007]
[1717330502360,0.00943801,68157.0,68156.0,0.016]
[1717330502707,0.00943801,68157.0,68156.0,0.007]
[1717330502842,0.00943801,68157.0,68156.0,0.3174]
[1717330503042,0.01043801,68157.0,68156.0,0.464122]
[1717330503245,0.01043801,68157.0,68156.0,0.457122]
[1717330504489,0.01043801,68157.0,68156.0,0.458122]
[1717330505080,0.01043801,68157.0,68156.0,0.457122]
[1717330505518,0.00943801,68157.0,68156.0,0.954922]
[1717330506107,0.00943801,68157.0,68156.0,0.970922]
[1717330506302,0.00943801,68157.0,68156.0,0.954922]
[1717330506655,0.00943801,68157.0,68156.0,0.966922]
[1717330506859,0.00943801,68157.0,68156.0,1.12969991]
[1717330507413,0.00943801,68157.0,68156.0,1.11269991]
[1717330507587,0.00943801,68157.0,68156.0,1.27792904]
[1717330508287,0.00943801,68157.0,68156.0,1.12569991]
[1717330510592,0.00943801,68157.0,68156.0,1.27793004]
[1717330513582,0.00943801,68157.0,68156.0,1.12569991]
[1717330514431,0.00943801,68157.0,68156.0,0.34049991]
[1717330515615,0.00943801,68157.0,68156.0,0.194722]
[1717330516462,0.30992138,68157.0,68156.0,0.025]
[1717330516680,0.79742138,68157.0,68156.0,0.025]
[1717330517539,0.00978337,68153.0,68146.0,0.146743]
[1717330517958,0.00978337,68154.0,68146.0,0.146743]
[1717330518135,0.78763801,68157.0,68146.0,0.146743]
[1717330518136,0.00978337,68152.0,68146.0,0.146743]
[1717330518905,0.00978337,68154.0,68146.0,0.146743]
[1717330519034,0.00978337,68152.0,68146.0,0.146743]
[1717330519437,0.00978337,68153.0,68146.0,0.146743]
[1717330519648,0.79163801,68157.0,68146.0,0.146743]
[1717330519649,0.00978337,68154.0,68146.0,0.146743]
[1717330519849,0.00978337,68152.0,68146.0,0.146743]
[1717330520082,0.00978337,68154.0,68146.0,0.160743]
[1717330520261,0.00978337,68154.0,68146.0,0.172743]
[1717330520619,0.00978337,68154.0,68146.0,0.158743]
[1717330521027,0.00943801,68157.0,68151.0,0.146732]
[1717330521222,0.00943801,68157.0,68154.0,0.146724]
[1717330521438,0.00943801,68157.0,68155.0,0.16877791]
[1717330521639,0.00943801,68157.0,68155.0,0.31550191]
[1717330523033,0.00943801,68157.0,68155.0,0.32750191]
[1717330523972,0.00943801,68157.0,68155.0,0.19377791]
[1717330524167,0.7583,68156.0,68155.0,0.025]
[1717330524387,0.76808337,68156.0,68155.0,0.025]
[1717330525160,0.91480537,68156.0,68155.0,0.025]
[1717330525359,0.91480537,68156.0,68155.0,0.013]
[1717330525921,0.91480537,68156.0,68141.0,0.4691]
[1717330525922,0.00978337,68145.0,68141.0,0.4691]
[1717330526121,0.00978337,68145.0,68138.0,0.51144019]
[1717330526330,0.4606,68153.0,68139.0,0.15227043]
[1717330526331,0.00978337,68146.0,68139.0,0.15227043]
[1717330526684,0.607328,68153.0,68138.0,0.51144019]
[1717330526685,0.00978337,68145.0,68138.0,0.51144019]
[1717330526889,0.00978337,68146.0,68139.0,0.15227093]
[1717330527096,0.00978337,68146.0,68138.0,0.16144019]
[1717330527097,0.00978337,68145.0,68138.0,0.16144019]
[1717330527886,0.00978337,68145.0,68139.0,0.009]
[1717330528668,0.00978337,68144.0,68139.0,0.009]
[1717330528868,0.00978337,68145.0,68139.0,0.009]
[1717330529123,0.607328,68153.0,68138.0,0.17344019]
[1717330529124,0.00978337,68146.0,68138.0,0.17344019]
[1717330529328,0.00978337,68148.0,68138.0,0.16144019]
[1717330529474,0.00978337,68146.0,68138.0,0.17444019]
[1717330529817,0.00978337,68146.0,68139.0,0.008]
[1717330530029,0.607328,68153.0,68138.0,0.16144019]
[1717330530030,0.00978337,68144.0,68138.0,0.16144019]
[1717330530285,0.00978337,68144.0,68138.0,0.17444019]
[1717330530461,0.00978337,68144.0,68138.0,0.18644019]
[1717330530633,0.00978337,68143.0,68138.0,0.17444019]
[1717330530843,0.00978337,68144.0,68138.0,0.16144019]
[1717330531010,0.00978337,68143.0,68138.0,0.16144019]
[1717330531409,0.00978337,68143.0,68139.0,0.009]
[1717330532033,0.30748337,68145.0,68139.0,0.009]
[1717330532228,0.47038337,68144.0,68139.0,0.017]
[1717330532853,0.47038337,68144.0,68139.0,0.025]
[1717330533069,0.4606,68150.0,68140.0,0.4577]
[1717330533272,0.00978337,68147.0,68140.0,0.4577]
[1717330533471,0.00978337,68146.0,68140.0,0.4577]
[1717330533651,0.00978337,68146.0,68139.0,0.008]
[1717330533652,0.00978337,68145.0,68139.0,0.008]
[1717330534465,0.00943801,68157.0,68144.0,0.07288895]
[1717330534671,0.00943801,68157.0,68146.0,0.7653]
[1717330534878,0.00943801,68157.0,68147.0,0.16877791]
[1717330535127,0.00943801,68157.0,68148.0,0.146739]
[1717330535384,0.00943801,68157.0,68149.0,0.16877791]
[1717330535967,0.00978337,68156.0,68149.0,0.16877791]
[1717330536183,0.47982138,68157.0,68149.0,0.16877791]
[1717330536605,0.47003801,68157.0,68149.0,0.16877791]
[1717330537549,0.47982138,68157.0,68149.0,0.16877791]
[1717330537951,0.00978337,68156.0,68149.0,0.16877791]
[1717330538140,0.47003801,68157.0,68149.0,0.16877791]
[1717330538141,0.00978337,68155.0,68149.0,0.16877791]
[1717330539150,0.00978337,68152.0,68146.0,0.7653]
[1717330539351,0.00978337,68152.0,68147.0,0.023]
[1717330539551,0.47003801,68157.0,68147.0,0.023]
[1717330539552,0.00978337,68151.0,68147.0,0.023]
[1717330540356,0.00978337,68152.0,68147.0,0.023]
[1717330540559,0.00978337,68152.0,68145.0,0.146745]
[1717330540773,0.00978337,68152.0,68147.0,0.011]
[1717330541140,0.00978337,68151.0,68147.0,0.006]
[1717330541458,0.47003801,68157.0,68147.0,0.006]
[1717330541459,0.00978337,68156.0,68148.0,0.146738]
[1717330541869,0.01922138,68157.0,68148.0,0.146738]
[1717330542427,0.00978337,68156.0,68148.0,0.146738]
[1717330542672,0.01922138,68157.0,68148.0,0.146738]
[1717330542881,0.00943801,68157.0,68148.0,0.146738]
[1717330543866,0.01922138,68157.0,68147.0,0.005]
[1717330544092,0.00978337,68156.0,68148.0,0.003]
[1717330544299,0.00978337,68155.0,68148.0,0.003]
[1717330544523,0.00978337,68156.0,68148.0,0.005]
[1717330544694,0.00978337,68154.0,68148.0,0.005]
[1717330544997,0.00943801,68157.0,68143.0,0.023]
[1717330544998,0.00978337,68153.0,68143.0,0.023]
[1717330545198,0.00978337,68150.0,68142.0,0.146751]
[1717330545420,0.00978337,68149.0,68143.0,0.15225958]
[1717330545677,0.00978337,68149.0,68142.0,0.146751]
[1717330546305,0.00978337,68149.0,68147.0,0.005]
[1717330546518,0.00978337,68150.0,68147.0,0.006]
[1717330546978,0.00978337,68150.0,68142.0,0.146751]
[1717330547197,0.7329,68152.0,68142.0,0.013]
[1717330547198,0.00978337,68149.0,68142.0,0.013]
[1717330547666,0.00978337,68149.0,68140.0,0.146755]
[1717330547891,0.00978337,68149.0,68142.0,0.035]
[1717330548096,0.00978337,68149.0,68142.0,0.048]
[1717330548312,0.00641485,68149.0,68142.0,0.036]
[1717330548512,0.00641485,68149.0,68142.0,0.013]
[1717330548935,0.00641485,68147.0,68142.0,0.013]
[1717330549351,0.00641485,68147.0,68140.0,0.146755]
[1717330549973,0.00641485,68147.0,68142.0,0.005]
[1717330550178,0.00641485,68147.0,68140.0,0.146755]
[1717330550537,0.00641485,68148.0,68141.0,0.471354]
[1717330550761,0.00641485,68149.0,68141.0,0.471354]
[1717330550935,0.00641485,68149.0,68141.0,0.454354]
[1717330551131,0.00641485,68149.0,68142.0,0.006]
[1717330551341,0.00641485,68148.0,68142.0,0.011]
[1717330551490,0.00641485,68146.0,68142.0,0.011]
[1717330551899,0.7329,68152.0,68142.0,0.011]
[1717330551900,0.00641485,68144.0,68142.0,0.011]
[1717330552103,0.47441485,68143.0,68142.0,0.011]
[1717330552528,0.47441485,68143.0,68142.0,0.005]
[1717330553091,0.47441485,68143.0,68141.0,0.009]
[1717330553299,0.00641485,68141.0,68136.0,0.146763]
[1717330553498,0.00641485,68141.0,68137.0,0.17527773]
[1717330553942,0.00641485,68140.0,68133.0,0.29258019]
[1717330554237,0.00641485,68139.0,68134.0,0.22841698]
[1717330554271,0.2649,68142.0,68134.0,0.22841698]
[1717330554481,0.26793963,68142.0,68133.0,0.01468019]
[1717330554701,0.00641485,68141.0,68134.0,0.15228643]
[1717330555082,0.00641485,68141.0,68137.0,0.008]
[1717330555272,0.00641485,68141.0,68136.0,0.013]
[1717330555605,0.26152478,68142.0,68136.0,0.013]
[1717330556268,0.26152478,68142.0,68133.0,0.01468019]
[1717330556269,0.26152478,68142.0,68133.0,0.16145019]
[1717330556901,0.26152478,68142.0,68134.0,0.17128592]
[1717330557086,0.00641485,68141.0,68133.0,0.18445019]
[1717330557340,0.00641485,68141.0,68134.0,0.1522853]
[1717330557586,0.00641485,68140.0,68136.0,0.005]
[1717330558535,0.468,68139.0,68133.0,0.16145019]
[1717330559443,0.468,68139.0,68133.0,0.14677]
[1717330559670,0.468,68139.0,68134.0,0.013]
[1717330560124,0.00641485,68138.0,68134.0,0.013]
[1717330560352,0.00641485,68138.0,68133.0,0.14677]
[1717330560643,0.46593779,68139.0,68133.0,0.16277]
[1717330560844,0.46593779,68139.0,68136.0,0.005]
[1717330561012,0.46593779,68139.0,68133.0,0.16277]
[1717330561230,0.46593779,68139.0,68134.0,0.012]
[1717330561372,0.00641485,68139.0,68134.0,0.012]
[1717330561574,0.00641485,68139.0,68128.0,0.615881]
[1717330561575,0.00641485,68135.0,68128.0,0.68876995]
[1717330561808,0.00641485,68135.0,68129.0,0.15228664]
[1717330562010,0.00641485,68136.0,68133.0,0.016]
[1717330562249,0.00641485,68137.0,68128.0,0.68876995]
[1717330562452,0.00641485,68136.0,68128.0,0.68876995]
[1717330562811,0.00641485,68136.0,68128.0,0.21966995]
[1717330563022,0.00641485,68135.0,68134.0,0.025]
[1717330563460,0.00641485,68135.0,68134.0,0.012]
[1717330563683,0.46351485,68135.0,68134.0,0.012]
[1717330564123,0.4571,68135.0,68134.0,0.012]
[1717330564560,0.4571,68135.0,68128.0,0.21966995]
[1717330564814,0.4571,68135.0,68128.0,0.25266995]
[1717330565291,0.4571,68135.0,68128.0,0.21966995]
[1717330566478,0.45402092,68135.0,68128.0,0.23166995]
[1717330566703,0.45402092,68135.0,68129.0,0.14678]
[1717330567163,0.45402092,68135.0,68128.0,0.012]
[1717330567410,0.45402092,68135.0,68128.0,0.025]
[1717330567813,0.45402092,68135.0,68128.0,0.013]
[1717330568014,0.45402092,68135.0,68127.0,0.424684]
[1717330568242,0.46043577,68135.0,68129.0,0.008]
[1717330568461,0.46043577,68135.0,68127.0,0.146784]
[1717330568462,0.00641485,68134.0,68127.0,0.146784]
[1717330568926,0.00641485,68134.0,68128.0,0.008]
[1717330569439,0.45402092,68135.0,68129.0,0.032]
[1717330569440,0.00641485,68133.0,68129.0,0.032]
[1717330569658,0.00486513,68133.0,68129.0,0.032]
[1717330569920,0.00486513,68132.0,68129.0,0.023]
[1717330570592,0.45402092,68135.0,68129.0,0.023]
[1717330571068,0.45402092,68135.0,68129.0,0.032]
[1717330571747,0.45402092,68135.0,68129.0,0.009]
[1717330571965,0.45402092,68135.0,68129.0,0.017]
[1717330572617,0.45402092,68135.0,68129.0,0.008]
[1717330572835,0.45402092,68135.0,68129.0,0.017]
[1717330574426,0.00486513,68134.0,68129.0,0.017]
[1717330574874,0.45888605,68135.0,68129.0,0.017]
[1717330575081,0.00486513,68130.0,68129.0,0.017]
[1717330575285,0.00486513,68134.0,68129.0,0.017]
[1717330575488,0.45888605,68135.0,68129.0,0.017]
[1717330575685,0.45888605,68135.0,68129.0,0.008]
[1717330576168,0.45888605,68135.0,68129.0,0.017]
[1717330576572,0.45888605,68135.0,68129.0,0.008]
[1717330576802,0.45888605,68135.0,68128.0,0.07288895]
[1717330577003,0.45402092,68135.0,68129.0,0.017]
[1717330577744,0.45402092,68135.0,68129.0,0.025]
[1717330578338,0.45888605,68135.0,68129.0,0.025]
[1717330578552,0.45458801,68135.0,68129.0,0.025]
[1717330578758,0.45458801,68135.0,68129.0,0.016]
[1717330580184,0.45458801,68135.0,68129.0,0.025]
[1717330581046,0.44972288,68135.0,68129.0,0.025]
[1717330581258,0.45458801,68135.0,68129.0,0.025]
[1717330582208,0.00486513,68133.0,68129.0,0.025]
[1717330582525,0.00486513,68131.0,68129.0,0.025]
[1717330582727,0.00486513,68132.0,68129.0,0.025]
[1717330583154,0.00486513,68131.0,68129.0,0.016]
[1717330583355,0.00486513,68132.0,68129.0,0.025]
[1717330583568,0.00486513,68134.0,68129.0,0.009]
[1717330583943,0.00486513,68134.0,68129.0,0.005]
[1717330584326,0.00486513,68134.0,68123.0,0.428992]
[1717330584657,0.00486513,68134.0,68129.0,0.002]
[1717330585276,0.00486513,68134.0,68129.0,0.005]
[1717330585471,0.00486513,68134.0,68129.0,0.003]
[1717330585732,0.00486513,68134.0,68123.0,0.57476991]
[1717330586113,0.00486513,68134.0,68129.0,0.003]
[1717330586516,0.00486513,68133.0,68129.0,0.003]
[1717330586697,0.00486513,68132.0,68123.0,0.57476991]
[1717330586879,0.00486513,68132.0,68124.0,0.15230231]
[1717330587109,0.00486513,68131.0,68129.0,0.002]
[1717330587321,0.00486513,68131.0,68123.0,0.59776991]
[1717330587516,0.00486513,68131.0,68124.0,0.15230248]
[1717330587721,0.00486513,68131.0,68129.0,0.002]
[1717330587973,0.00486513,68131.0,68123.0,0.59776991]
[1717330588177,0.00486513,68131.0,68124.0,0.15230249]
[1717330588382,0.00486513,68131.0,68129.0,0.002]
[1717330588779,0.00486513,68131.0,68129.0,0.005]
[1717330589164,0.00486513,68131.0,68129.0,0.002]
[1717330589564,0.00486513,68130.0,68129.0,0.002]
[1717330590317,0.00486513,68130.0,68129.0,0.003]
[1717330590547,0.00486513,68131.0,68129.0,0.003]
[1717330590753,0.00486513,68130.0,68129.0,0.003]
[1717330591285,0.00486513,68131.0,68129.0,0.005]
[1717330591483,0.00486513,68131.0,68129.0,0.003]
[1717330591686,0.00486513,68130.0,68123.0,0.57476991]
[1717330591885,0.00486513,68131.0,68129.0,0.002]
[1717330592089,0.00486513,68131.0,68129.0,0.005]
[1717330592538,0.00486513,68131.0,68129.0,0.002]
[1717330593322,0.00486513,68131.0,68123.0,0.57476991]
[1717330593522,0.00486513,68132.0,68129.0,0.003]
[1717330594157,0.91664313,68130.0,68129.0,0.003]
[1717330594430,0.91664313,68130.0,68129.0,0.005]
[1717330594600,0.91664313,68130.0,68129.0,0.003]
[1717330594601,0.00486513,68130.0,68129.0,0.003]
[1717330595003,0.15164313,68130.0,68129.0,0.003]
[1717330595165,0.15164313,68130.0,68129.0,0.002]
[1717330595969,0.15164313,68130.0,68129.0,0.005]
[1717330596384,0.15164313,68130.0,68129.0,0.002]
[1717330597084,0.15164313,68130.0,68129.0,0.001]
[1717330597410,0.15264313,68130.0,68129.0,0.002]
[1717330597986,0.15464313,68130.0,68129.0,0.004]
[1717330599150,0.42464313,68130.0,68129.0,0.004]
[1717330599361,0.91964313,68130.0,68129.0,0.004]
[1717330600513,1.06542104,68130.0,68129.0,0.004]
[1717330600718,1.35897704,68130.0,68129.0,0.004]
[1717330601253,1.40770631,68130.0,68129.0,0.004]
[1717330601459,1.44274956,68130.0,68129.0,0.004]
[1717330601952,1.54274956,68130.0,68129.0,0.004]
[1717330602098,1.64274956,68130.0,68129.0,0.004]
[1717330602304,1.93630556,68130.0,68129.0,0.004]
[1717330602505,2.08028065,68130.0,68129.0,0.004]
[1717330602681,2.1022682,68130.0,68129.0,0.003]
[1717330603087,1.56374956,68130.0,68129.0,0.006]
[1717330603365,1.62966933,68130.0,68129.0,0.006]
[1717330603573,1.45897704,68130.0,68129.0,0.003]
[1717330604214,0.00486513,68117.0,68115.0,0.2885]
[1717330604620,0.146801,68120.0,68115.0,0.2885]
[1717330604621,0.00486513,68119.0,68115.0,0.2885]
[1717330605785,0.005,68117.0,68115.0,0.2895]
[1717330605996,0.00986513,68117.0,68115.0,0.2895]
[1717330606189,0.00486513,68116.0,68115.0,0.2895]
[1717330606608,0.00486513,68116.0,68115.0,0.2885]
[1717330607212,0.00486513,68113.0,68105.0,0.14683]
[1717330607417,0.00486513,68112.0,68110.0,0.7493]
[1717330607841,0.00486513,68111.0,68110.0,0.7493]
[1717330608264,0.00486513,68114.0,68110.0,0.7493]
[1717330608469,0.00486513,68112.0,68110.0,0.7493]
[1717330608677,0.00486513,68111.0,68110.0,0.7493]
[1717330608884,0.00486513,68111.0,68110.0,0.2863]
[1717330609095,0.00486513,68109.0,68107.0,0.463]
[1717330609299,0.00486513,68110.0,68107.0,0.463]
[1717330609518,0.2738,68120.0,68106.0,0.2863]
[1717330609519,0.00486513,68108.0,68106.0,0.2863]
[1717330610323,0.00486513,68109.0,68106.0,0.2863]
[1717330610523,0.00486513,68107.0,68106.0,0.2863]
[1717330611607,0.00586513,68110.0,68106.0,0.2863]
[1717330611971,0.00486513,68109.0,68106.0,0.2863]
[1717330612170,0.00486513,68110.0,68106.0,0.2903]
[1717330612352,0.00486513,68108.0,68106.0,0.2953]
[1717330612598,0.00486513,68110.0,68106.0,0.2953]
[1717330612794,0.00486513,68110.0,68106.0,0.2903]
[1717330612972,0.00486513,68110.0,68106.0,0.2863]
[1717330613170,0.00486513,68110.0,68106.0,0.2953]
[1717330613690,0.146815,68113.0,68106.0,0.2953]
[1717330613691,0.00486513,68112.0,68106.0,0.2903]
[1717330613893,0.146815,68113.0,68106.0,0.2903]
[1717330613894,0.00486513,68111.0,68106.0,0.2953]
[1717330614149,0.146815,68113.0,68106.0,0.2953]
[1717330614478,0.146815,68113.0,68106.0,0.2913]
[1717330614819,0.15168013,68113.0,68106.0,0.2913]
[1717330615031,0.15168013,68113.0,68106.0,0.2953]
[1717330615270,0.15168013,68113.0,68106.0,0.2863]
[1717330615481,0.00486513,68112.0,68106.0,0.2863]
[1717330615630,0.00486513,68112.0,68106.0,0.2953]
[1717330616037,0.00486513,68112.0,68106.0,0.2903]
[1717330616234,0.00486513,68111.0,68106.0,0.2903]
[1717330616495,0.00486513,68111.0,68106.0,0.2913]
[1717330616852,0.00486513,68111.0,68106.0,0.2863]
[1717330617015,0.00486513,68110.0,68106.0,0.2863]
[1717330617222,0.00486513,68111.0,68106.0,0.2913]
[1717330617450,0.00486513,68110.0,68106.0,0.2913]
[1717330617854,0.00486513,68111.0,68106.0,0.2953]
[1717330618049,0.608511,68115.0,68106.0,0.2913]
[1717330618050,0.00486513,68110.0,68106.0,0.2913]
[1717330618459,0.00486513,68110.0,68106.0,0.2903]
[1717330618891,0.00486513,68110.0,68106.0,0.2953]
[1717330619335,0.00486513,68110.0,68106.0,0.005]
[1717330619511,0.00486513,68108.0,68107.0,0.2863]
[1717330621061,0.00486513,68109.0,68107.0,0.2863]
[1717330621892,0.00486513,68109.0,68107.0,0.2873]
[1717330622129,0.00486513,68110.0,68107.0,0.2873]